bitfinex-derivatives/quotes_ETHF0:USTF0_20250607
["timestamp","ask_amount","ask_price","bid_price","bid_amount"]
[1749309913806,4.30040513,2520.5,2520.4,0.79308]
[1749309914501,1.09260513,2520.5,2520.4,0.79308]
[1749309915804,1.88565513,2520.5,2520.4,0.79308]
[1749309916098,1.09260513,2520.5,2520.4,0.79308]
[1749309916402,1.88565513,2520.5,2520.4,0.79308]
[1749309916598,0.7931,2520.4,2520.3,0.7931]
[1749309917305,0.79307,2520.5,2520.4,0.79307]
[1749309917508,1.88611052,2520.5,2520.4,0.79307]
[1749309918408,0.7931,2520.4,2520.3,0.79309]
[1749309918605,0.79307,2520.5,2520.4,0.79306]
[1749309918806,1.8861526,2520.5,2520.4,0.79306]
[1749309919907,1.0930826,2520.5,2520.4,0.79306]
[1749309920308,1.8861326,2520.5,2520.4,0.79306]
[1749309922399,0.79308,2520.4,2520.3,0.79308]
[1749309924608,0.79315,2520.3,2520.2,0.79312]
[1749309924804,0.79318,2520.2,2520.1,0.79316]
[1749309925912,0.79316,2520.2,2520.1,0.79315]
[1749309926207,0.79321,2520.0,2519.9,2.13293]
[1749309926415,0.79326,2519.9,2519.8,0.79326]
[1749309926615,0.79328,2519.8,2519.7,0.79328]
[1749309926912,0.7933,2519.7,2519.6,1.45361]
[1749309927113,0.7933,2519.8,2519.7,0.7933]
[1749309927411,0.6354,2519.9,2519.6,0.6603]
[1749309927412,0.7933,2519.7,2519.6,0.6603]
[1749309927613,0.79329,2519.8,2519.7,0.79329]
[1749309927813,0.7933,2519.7,2519.6,1.45361]
[1749309928014,0.79328,2519.8,2519.7,0.79329]
[1749309929316,1.42866,2519.9,2519.8,0.79327]
[1749309930312,0.79327,2519.8,2519.7,0.79328]
[1749309930617,0.6354,2519.9,2519.5,2.632]
[1749309931219,0.79327,2519.8,2519.5,2.632]
[1749309931917,1.42866,2519.9,2519.8,0.79327]
[1749309932415,2.68566,2519.9,2519.8,0.79327]
[1749309934316,2.68566,2519.9,2519.5,1.3265]
[1749309934622,0.79329,2519.8,2519.7,0.79328]
[1749309936423,1.8924,2519.9,2519.5,0.06891172]
[1749309936721,0.79333,2519.6,2519.5,0.86226172]
[1749309936921,0.79333,2519.6,2519.5,0.79335]
[1749309938224,0.79333,2519.7,2519.6,0.79332]
[1749309939425,0.79335,2519.6,2519.5,0.79335]
[1749309939818,0.79332,2519.7,2519.6,0.79332]
[1749309940727,0.7933,2519.7,2519.6,0.79332]
[1749309940922,0.79328,2519.8,2519.7,0.79328]
[1749309942122,0.6354,2519.9,2519.8,0.79327]
[1749309942324,5.55719,2520.1,2519.7,3.2078]
[1749309942630,5.55719,2520.1,2520.0,0.79321]
[1749309942819,6.64756672,2520.1,2520.0,0.79321]
[1749309943129,1.88356672,2520.1,2520.0,0.79321]
[1749309943325,0.79322,2520.0,2519.9,0.79322]
[1749309943630,0.79324,2519.9,2519.8,0.79325]
[1749309945633,0.79328,2519.8,2519.7,0.79328]
[1749309945927,1.42628,2519.8,2519.7,0.79328]
[1749309946435,0.7933,2519.7,2519.6,0.6296]
[1749309947029,0.7933,2519.7,2519.6,1.42293]
[1749309947531,1.42629,2519.8,2519.7,0.7933]
[1749309948736,0.7933,2519.7,2519.6,1.42291]
[1749309949032,0.79333,2519.6,2519.5,0.79335]
[1749309949433,0.79332,2519.7,2519.6,0.79333]
[1749309950836,0.79335,2519.6,2519.5,0.79335]
[1749309951338,0.79333,2519.7,2519.6,0.79333]
[1749309953031,0.79335,2519.6,2519.5,0.79334]
[1749309954439,0.79333,2519.7,2519.6,0.79333]
[1749309954636,0.79336,2519.6,2519.5,0.79335]
[1749309956139,0.79332,2519.7,2519.6,0.79332]
[1749309956441,1.88682985,2519.7,2519.6,0.79332]
[1749309957042,0.79335,2519.6,2519.5,0.79334]
[1749309959641,7.2991,2519.8,2519.4,0.65304967]
[1749309959942,1.88697517,2519.7,2519.6,0.79331]
[1749309961347,0.79334,2519.6,2519.5,0.79335]
[1749309961541,0.79333,2519.7,2519.6,0.79333]
[1749309961744,0.79333,2519.6,2519.5,0.79334]
[1749309962142,0.79337,2519.5,2519.4,0.00594967]
[1749309962445,1.88704727,2519.5,2519.4,0.00594967]
[1749309962745,5.85367727,2519.5,2519.4,0.79934967]
[1749309963046,6.64704727,2519.5,2519.4,0.79934967]
[1749309963344,1.88704727,2519.5,2519.4,0.86826139]
[1749309963533,6.64704727,2519.5,2519.4,0.86826139]
[1749309963738,9.85484727,2519.5,2519.4,0.07486139]
[1749309964448,9.85484727,2519.5,2519.4,0.00594967]
[1749309964644,9.85484727,2519.5,2519.4,0.79934967]
[1749309965145,5.09484727,2519.5,2519.4,0.79934967]
[1749309965343,9.85484727,2519.5,2519.4,0.79934967]
[1749309966142,9.85484727,2519.5,2519.4,0.00594967]
[1749309966445,6.64704727,2519.5,2519.4,0.79934967]
[1749309966840,6.64704727,2519.5,2519.4,0.00594967]
[1749309967247,6.64704727,2519.5,2519.4,0.79934967]
[1749309967446,6.64704727,2519.5,2519.4,0.00594967]
[1749309968046,6.64704727,2519.5,2519.4,0.79934967]
[1749309968241,6.64704727,2519.5,2519.4,0.00594967]
[1749309968647,1.88704727,2519.5,2519.4,0.00594967]
[1749309968946,6.64704727,2519.5,2519.4,0.00594967]
[1749309970348,6.64704727,2519.5,2519.4,0.79934967]
[1749309970742,6.64704727,2519.5,2519.4,0.00594967]
[1749309971651,1.88704727,2519.5,2519.4,0.00594967]
[1749309971950,6.64704727,2519.5,2519.4,0.00594967]
[1749309973252,9.85484727,2519.5,2519.4,0.00594967]
[1749309981454,9.85118232,2519.5,2519.4,0.00594967]
[1749309984259,1.09001232,2519.5,2519.4,0.79934967]
[1749309984562,3.8408,2519.8,2519.7,0.7933]
[1749309984563,4.00108,2519.8,2519.7,0.7933]
[1749309984752,5.09117608,2519.8,2519.7,0.7933]
[1749309985157,4.29789608,2519.8,2519.7,0.7933]
[1749309985359,4.29789608,2519.8,2519.6,0.79332]
[1749309985561,0.79332,2519.7,2519.6,2.13592]
[1749309986254,4.0011,2519.8,2519.7,0.7933]
[1749309986563,4.29775133,2519.8,2519.7,0.7933]
[1749309987259,5.09102133,2519.8,2519.7,0.7933]
[1749309987462,0.79337,2519.5,2519.4,0.00594967]
[1749309987660,4.00117,2519.5,2519.4,0.00594967]
[1749309987861,5.09128529,2519.5,2519.4,0.00594967]
[1749309989762,1.09011529,2519.5,2519.4,0.79934967]
[1749309989963,0.79332,2519.7,2519.6,0.79332]
[1749309990164,1.88403412,2519.7,2519.6,0.79332]
[1749309990461,0.79333,2519.6,2519.5,1.43675]
[1749309990661,1.88404412,2519.6,2519.5,1.43675]
[1749309990862,1.09071412,2519.6,2519.5,1.43675]
[1749309991768,1.88404412,2519.6,2519.5,1.43675]
[1749309992264,1.89617755,2519.6,2519.5,1.43675]
[1749309993058,0.79333,2519.6,2519.5,1.43675]
[1749309995267,0.79337,2519.5,2519.4,0.00594967]
[1749309995859,1.44277,2519.5,2519.4,0.00594967]
[1749309996060,2.54545115,2519.5,2519.4,0.00594967]
[1749309996262,1.44277,2519.5,2519.4,0.00594967]
[1749309996460,2.54545406,2519.5,2519.4,0.00594967]
[1749309996661,2.54544768,2519.5,2519.4,0.00594967]
[1749309996861,1.44277,2519.5,2519.4,0.00594967]
[1749309997165,8.49053391,2519.5,2518.4,5.49673923]
[1749309997469,8.49053391,2519.5,2518.7,0.6628]
[1749309997470,4.0013,2519.1,2518.7,0.6628]
[1749309997667,4.0013,2519.1,2518.8,1.2977]
[1749309998371,4.0013,2519.1,2519.0,0.79352]
[1749309998372,3.2078,2519.1,2519.0,0.79352]
[1749309998567,0.00594967,2519.2,2519.1,0.79349]
[1749310001171,0.79940967,2519.2,2519.1,0.79349]
[1749310001963,0.00594967,2519.2,2518.7,0.66874967]
[1749310002173,0.79355,2519.0,2518.7,0.66874967]
[1749310002565,0.79352,2519.0,2518.9,0.79356]
[1749310002966,0.79352,2519.0,2518.8,0.79358]
[1749310003272,0.79357,2518.9,2518.7,1.46235967]
[1749310003473,0.79359,2518.8,2518.7,0.66874967]
[1749310003971,0.79359,2518.8,2518.7,1.46236967]
[1749310004471,0.79359,2518.8,2518.7,0.00594967]
[1749310005562,4.00138,2518.9,2518.8,0.79359]
[1749310006268,8.75638,2518.9,2518.7,0.79954967]
[1749310006670,0.79358,2518.9,2518.8,0.79359]
[1749310006865,5.54858,2518.9,2518.8,0.79359]
[1749310007373,4.755,2518.9,2518.7,0.00594967]
[1749310007771,5.54859,2518.9,2518.8,0.79359]
[1749310008176,0.79359,2518.8,2518.7,0.00594967]
[1749310008473,1.48999,2518.8,2518.7,0.00594967]
[1749310008872,1.48999,2518.8,2518.7,0.79956967]
[1749310009071,1.48999,2518.8,2518.7,0.00594967]
[1749310009475,1.48999,2518.8,2518.7,0.79956967]
[1749310012280,1.48999,2518.8,2518.7,0.00594967]
[1749310012682,2.80709,2518.8,2518.7,0.00594967]
[1749310015981,1.48999,2518.8,2518.7,0.79956967]
[1749310016179,0.6964,2518.8,2518.7,0.79956967]
[1749310017786,8.75235,2518.9,2518.8,0.79359]
[1749310018082,8.75235,2518.9,2518.8,0.86250172]
[1749310018780,4.00135,2518.9,2518.8,0.86250172]
[1749310019081,4.00136,2518.9,2518.8,0.86250172]
[1749310020674,3.2078,2518.9,2518.8,0.86250172]
[1749310021074,3.2078,2518.9,2518.8,2.78000172]
[1749310021278,0.00594967,2519.2,2519.1,0.79349]
[1749310021582,0.79940967,2519.2,2519.1,0.79349]
[1749310022183,0.00594967,2519.2,2519.1,0.79349]
[1749310022682,0.79940967,2519.2,2519.1,0.79349]
[1749310023083,0.00594967,2519.2,2519.1,0.79349]
[1749310024883,0.79349,2519.1,2519.0,2.08111]
[1749310025183,0.00594967,2519.2,2519.1,0.79349]
[1749310028587,0.00594967,2519.2,2519.1,4.00129]
[1749310029389,0.00594967,2519.2,2519.1,9.00129]
[1749310032396,0.00594967,2519.2,2519.1,4.00129]
[1749310035802,0.00594967,2519.2,2519.1,0.79349]
[1749310036297,0.00594967,2519.2,2519.1,2.15099]
[1749310045708,0.00594967,2519.2,2519.1,2.21990172]
[1749310047514,0.00594967,2519.2,2519.1,2.15099]
[1749310047816,0.00594967,2519.2,2519.1,0.79349]
[1749310052716,0.00594967,2519.2,2519.1,0.86240172]
[1749310053621,0.00594967,2519.2,2519.1,0.79349]
[1749310054721,0.00594967,2519.2,2519.1,0.86240172]
[1749310055721,0.00594967,2519.2,2519.1,0.79349]
[1749310056615,0.00594967,2519.2,2519.1,0.86240172]
[1749310057624,0.00594967,2519.2,2519.1,0.79349]
[1749310058719,0.00594967,2519.2,2519.1,0.86240172]
[1749310059624,3.8355,2519.7,2519.6,0.79333]
[1749310059823,5.56758993,2519.7,2519.6,0.79333]
[1749310060020,6.89138993,2519.7,2519.1,2.05264172]
[1749310060216,0.79337,2519.5,2519.3,0.7934]
[1749310060417,0.79337,2519.5,2519.4,0.7934]
[1749310060619,4.4677,2519.7,2519.1,0.06891172]
[1749310060620,4.47364967,2519.7,2519.1,0.06891172]
[1749310060924,0.79348,2519.2,2519.1,0.79349]
[1749310061122,1.89340579,2519.2,2519.1,0.79349]
[1749310061520,0.79345,2519.3,2519.1,0.79349]
[1749310061725,0.6965,2519.2,2519.1,0.79349]
[1749310062923,1.48996,2519.2,2519.1,0.79349]
[1749310063123,0.79343,2519.3,2519.2,0.79344]
[1749310063323,0.79349,2519.1,2519.0,4.0013]
[1749310063530,0.79349,2519.1,2519.0,0.7935]
[1749310063719,0.79349,2519.1,2519.0,0.86241172]
[1749310064727,0.79349,2519.1,2519.0,0.7935]
[1749310065128,0.79354,2519.0,2518.9,0.79353]
[1749310065429,0.6806,2519.0,2518.9,0.79353]
[1749310065622,0.6806,2519.0,2518.7,0.00594967]
[1749310065921,0.79359,2518.8,2518.7,0.00594967]
[1749310066521,5.79359,2518.8,2518.7,0.00594967]
[1749310066724,9.00139,2518.8,2518.7,0.00594967]
[1749310066930,10.09993865,2518.8,2518.7,0.00594967]
[1749310067630,9.00139,2518.8,2518.7,0.00594967]
[1749310069520,9.64839,2518.8,2518.7,0.00594967]
[1749310069821,9.64839,2518.8,2518.7,0.07486139]
[1749310071332,8.5968,2518.8,2518.7,0.86848139]
[1749310071530,9.39039,2518.8,2518.7,0.07486139]
[1749310072424,8.5968,2518.8,2518.7,0.86848139]
[1749310073032,9.39039,2518.8,2518.7,0.07486139]
[1749310073531,9.39039,2518.8,2518.7,0.86848139]
[1749310073726,8.5968,2518.8,2518.7,0.86848139]
[1749310074829,9.39039,2518.8,2518.7,0.86848139]
[1749310075832,9.39039,2518.8,2518.7,0.07486139]
[1749310077732,0.79372,2518.4,2518.2,1.2816]
[1749310077933,0.6918,2518.3,2518.2,0.79378]
[1749310083838,0.6845,2518.5,2518.4,0.79369]
[1749310084637,1.47819,2518.5,2518.4,0.79371]
[1749310087842,0.79372,2518.4,2518.3,0.79373]
[1749310088138,0.79374,2518.4,2518.3,0.79374]
[1749310089641,1.4782,2518.5,2518.4,0.79371]
[1749310090035,0.79371,2518.4,2518.3,0.79374]
[1749310093344,0.79374,2518.3,2518.2,0.06891172]
[1749310094342,0.79374,2518.3,2518.2,0.86269172]
[1749310094939,0.79374,2518.3,2518.2,0.06891172]
[1749310096449,0.79374,2518.3,2518.2,0.86269172]
[1749310097849,0.79373,2518.4,2518.3,0.79374]
[1749310098952,5.4265,2518.5,2518.4,0.79371]
[1749310099137,5.83993751,2518.5,2518.4,0.79371]
[1749310099447,0.79367,2518.6,2518.5,0.79368]
[1749310099649,1.89151828,2518.6,2518.5,0.79368]
[1749310100043,0.79368,2518.5,2518.4,2.87]
[1749310100244,1.89152828,2518.5,2518.4,2.87]
[1749310100446,0.79368,2518.5,2518.4,0.688]
[1749310100952,0.79368,2518.5,2518.4,1.48171]
[1749310103149,0.79374,2518.3,2518.2,0.86265172]
[1749310103750,0.79374,2518.3,2518.2,0.06891172]
[1749310104449,3.2078,2518.6,2518.2,0.06891172]
[1749310104653,3.2078,2518.6,2518.3,2.83623]
[1749310104654,0.79371,2518.4,2518.3,2.83623]
[1749310106859,7.9458,2518.6,2518.3,2.0425]
[1749310107160,0.79371,2518.4,2518.3,2.83623]
[1749310107547,7.9458,2518.6,2518.3,2.83623]
[1749310107548,0.7937,2518.5,2518.4,0.79371]
[1749310108052,1.88991757,2518.5,2518.4,0.79371]
[1749310108253,0.7937,2518.5,2518.4,0.79371]
[1749310108453,0.7937,2518.5,2518.3,2.0425]
[1749310108454,7.9458,2518.6,2518.3,2.0425]
[1749310108951,1.88994321,2518.5,2518.4,0.79371]
[1749310109152,0.79371,2518.4,2518.3,2.83622]
[1749310109353,0.79371,2518.4,2518.3,0.6966]
[1749310109758,0.79371,2518.4,2518.3,1.49034]
[1749310110661,0.79374,2518.3,2518.2,0.06891172]
[1749310110864,0.79374,2518.3,2518.2,0.86269172]
[1749310111963,0.79374,2518.3,2518.2,0.06891172]
[1749310112663,0.79374,2518.3,2518.2,0.86269172]
[1749310113264,0.79374,2518.3,2518.2,0.06891172]
[1749310114965,0.79374,2518.3,2518.2,0.86269172]
[1749310115765,1.43864,2518.4,2518.3,0.79374]
[1749310117061,0.79374,2518.3,2518.2,0.86266172]
[1749310117967,1.43863,2518.4,2518.3,0.79374]
[1749310119566,0.79374,2518.3,2518.2,0.86266172]
[1749310121369,1.43864,2518.4,2518.3,0.79374]
[1749310121566,2.53417513,2518.4,2518.3,0.79374]
[1749310121863,1.74043513,2518.4,2518.3,0.79374]
[1749310122967,0.7937,2518.5,2518.4,0.79371]
[1749310123269,1.8893185,2518.5,2518.4,0.79371]
[1749310124370,0.79372,2518.4,2518.3,0.79372]
[1749310124571,0.79374,2518.3,2518.2,0.86267172]
[1749310124972,1.43133,2518.4,2518.3,0.79374]
[1749310125172,2.52696892,2518.4,2518.3,0.79374]
[1749310125566,1.43133,2518.4,2518.3,0.79374]
[1749310128872,0.79374,2518.3,2518.2,0.86266172]
[1749310129672,0.79378,2518.2,2518.1,0.79379]
[1749310130971,0.79377,2518.3,2518.2,0.79377]
[1749310134279,5.33877967,2518.4,2518.3,0.79374]
[1749310134480,6.43558739,2518.4,2518.3,0.79374]
[1749310134781,6.43558739,2518.4,2518.3,0.86265172]
[1749310136680,1.74035739,2518.4,2518.3,0.86265172]
[1749310136883,0.64354967,2518.4,2518.3,0.86265172]
[1749310137284,1.73827396,2518.4,2518.3,0.86265172]
[1749310138184,0.64354967,2518.4,2518.3,0.86265172]
[1749310138682,1.73811143,2518.4,2518.3,0.86265172]
[1749310139190,0.00594967,2518.4,2518.3,0.86265172]
[1749310139481,0.00594967,2518.4,2518.3,2.20515172]
[1749310139786,0.00594967,2518.4,2518.3,3.53495172]
[1749310142187,0.7936,2518.8,2518.3,4.72556172]
[1749310142377,1.4761,2518.8,2518.7,0.79362]
[1749310142576,0.79366,2518.6,2518.5,0.79366]
[1749310143882,0.79366,2518.6,2518.4,0.7937]
[1749310144081,0.79371,2518.5,2518.3,1.41141172]
[1749310144283,1.45541,2518.5,2518.4,0.79371]
[1749310144480,0.6617,2518.5,2518.4,0.79371]
[1749310144683,0.79371,2518.4,2518.3,2.20514172]
[1749310144985,1.45541,2518.5,2518.3,1.41141172]
[1749310145184,0.6617,2518.5,2518.4,0.79371]
[1749310145485,0.79371,2518.4,2518.3,1.51364172]
[1749310145685,1.4554,2518.5,2518.3,1.51364172]
[1749310146288,1.4554,2518.5,2518.4,0.79371]
[1749310149888,0.79371,2518.4,2518.3,1.51362172]
[1749310151493,1.4554,2518.5,2518.4,0.79371]
[1749310151787,1.4554,2518.5,2518.3,0.71991172]
[1749310151988,0.79371,2518.4,2518.3,0.86263172]
[1749310152188,0.79371,2518.4,2518.3,0.06891172]
[1749310152793,2.12971,2518.4,2518.3,0.06891172]
[1749310156198,0.79371,2518.4,2518.3,0.86265172]
[1749310158794,0.79371,2518.4,2518.3,0.06891172]
[1749310159195,2.12571,2518.4,2518.3,0.06891172]
[1749310160601,2.12571,2518.4,2518.3,0.86265172]
[1749310161399,0.79371,2518.4,2518.3,0.86265172]
[1749310161600,3.8695,2518.5,2518.3,0.06891172]
[1749310161791,0.79371,2518.4,2518.3,0.86263172]
[1749310164905,4.6632,2518.5,2518.4,0.79371]
[1749310165108,5.75440066,2518.5,2518.4,0.79371]
[1749310165910,5.75440066,2518.5,2518.3,0.06891172]
[1749310165911,0.79371,2518.4,2518.3,0.86263172]
[1749310166408,0.79371,2518.4,2518.3,0.06891172]
[1749310167008,2.06431,2518.4,2518.3,0.06891172]
[1749310167308,2.06431,2518.4,2518.3,0.86265172]
[1749310168010,0.79371,2518.4,2518.3,0.86265172]
[1749310168712,4.6632,2518.5,2518.4,0.79371]
[1749310169007,5.75425256,2518.5,2518.4,0.79371]
[1749310169208,4.6632,2518.5,2518.4,0.79371]
[1749310170210,5.75422646,2518.5,2518.4,0.79371]
[1749310170406,0.79371,2518.4,2518.3,0.86264172]
[1749310173814,3.98387,2518.7,2518.6,0.79365]
[1749310173815,1.46654,2518.7,2518.6,0.79365]
[1749310174007,3.19385144,2518.7,2518.5,0.79365]
[1749310174207,0.79365,2518.6,2518.5,0.79365]
[1749310174515,1.88483526,2518.6,2518.5,0.79365]
[1749310174813,1.88483526,2518.6,2518.5,0.79368]
[1749310176014,1.88503075,2518.6,2518.5,0.79368]
[1749310177717,1.88524647,2518.6,2518.5,0.79368]
[1749310178818,0.79365,2518.6,2518.5,0.79368]
[1749310179017,1.88578966,2518.6,2518.5,0.79368]
[1749310179218,0.79368,2518.5,2518.4,1.3198]
[1749310179519,1.88597075,2518.5,2518.4,2.11351]
[1749310181213,1.88637369,2518.5,2518.4,3.47311]
[1749310182520,1.09269369,2518.5,2518.4,3.47311]
[1749310182720,1.88637369,2518.5,2518.4,3.47311]
[1749310183222,1.09269369,2518.5,2518.4,3.47311]
[1749310183816,0.79368,2518.5,2518.4,3.47311]
[1749310184223,1.88651167,2518.5,2518.4,3.47311]
[1749310185423,1.88651167,2518.5,2518.4,2.11351]
[1749310185916,1.88651167,2518.5,2518.4,1.47561]
[1749310186122,0.79371,2518.4,2518.3,0.86265172]
[1749310186319,1.46491,2518.4,2518.3,0.86265172]
[1749310189825,1.46491,2518.4,2518.3,0.06891172]
[1749310191121,1.46491,2518.4,2518.3,0.86265172]
[1749310195417,0.6712,2518.4,2518.3,0.86265172]
[1749310199227,1.46491,2518.4,2518.3,0.86265172]
[1749310199624,2.74851,2518.4,2518.3,0.86265172]
[1749310200530,0.6712,2518.4,2518.3,0.86265172]
[1749310202734,3.21374967,2518.8,2518.3,0.06891172]
[1749310203032,1.09028382,2518.7,2518.6,0.79365]
[1749310203225,3.90594967,2518.8,2518.7,0.79362]
[1749310203428,4.99599542,2518.8,2518.7,0.79362]
[1749310203933,5.78958542,2518.8,2518.7,0.79362]
[1749310204232,4.99599542,2518.8,2518.7,0.79362]
[1749310204936,5.78958542,2518.8,2518.7,0.79362]
[1749310205134,4.99599542,2518.8,2518.7,0.79362]
[1749310205435,3.90594967,2518.8,2518.7,0.79362]
[1749310205633,0.69814967,2518.8,2518.7,0.79362]
[1749310209335,1.49173967,2518.8,2518.7,0.79362]
[1749310210134,0.69814967,2518.8,2518.7,0.79362]
[1749310210337,0.79362,2518.7,2518.6,1.46162]
[1749310210538,0.69814967,2518.8,2518.7,0.79362]
[1749310211032,3.2078,2519.4,2519.3,0.79343]
[1749310211234,1.08914016,2519.4,2519.3,0.79343]
[1749310211530,0.6762,2519.5,2519.3,0.79342]
[1749310211734,0.6762,2519.5,2519.0,3.2078]
[1749310211735,0.79348,2519.2,2519.0,4.0013]
[1749310211939,3.2078,2519.1,2518.7,3.2078]
[1749310212131,0.79354,2519.0,2518.9,0.79355]
[1749310212332,0.79359,2518.8,2518.7,3.2078]
[1749310212535,0.79358,2518.9,2518.7,3.2078]
[1749310212741,0.79358,2518.9,2518.8,0.79359]
[1749310217640,0.79359,2518.8,2518.7,0.79359]
[1749310217938,0.79364,2518.7,2518.6,0.79365]
[1749310218240,1.44324,2518.7,2518.6,0.79365]
[1749310219133,0.79366,2518.6,2518.5,0.79366]
[1749310219339,1.44323,2518.7,2518.6,0.79365]
[1749310220342,0.6496,2518.7,2518.6,0.79365]
[1749310221743,1.44322,2518.7,2518.6,0.79365]
[1749310222641,0.6496,2518.7,2518.6,0.79365]
[1749310223439,0.79368,2518.5,2518.4,0.6431]
[1749310223641,0.79369,2518.5,2518.4,0.7937]
[1749310223946,0.79369,2518.5,2518.4,0.79371]
[1749310224243,0.79372,2518.4,2518.0,3.90734967]
[1749310224447,0.6849,2518.3,2518.2,0.79378]
[1749310226346,0.6849,2518.3,2518.0,3.90734967]
[1749310226646,3.8927,2518.3,2518.2,0.79378]
[1749310227546,0.6849,2518.3,2518.2,0.79378]
[1749310227944,0.7937,2518.5,2518.0,2.68411967]
[1749310228141,4.717,2518.4,2518.3,0.79374]
[1749310228942,0.79375,2518.3,2518.2,0.79376]
[1749310229249,5.51073,2518.4,2518.2,0.79376]
[1749310229443,5.51073,2518.4,2518.3,0.79374]
[1749310229644,5.51073,2518.4,2518.2,0.79375]
[1749310229943,5.51073,2518.4,2518.3,0.79374]
[1749310230139,5.51073,2518.4,2518.2,0.79375]
[1749310230447,0.79377,2518.3,2518.1,0.79379]
[1749310230647,0.79378,2518.2,2518.1,0.79379]
[1749310230846,1.47098,2518.2,2518.1,0.79379]
[1749310232150,1.47099,2518.2,2518.0,0.79975967]
[1749310232347,1.47099,2518.2,2518.1,0.79381]
[1749310232547,0.79381,2518.1,2518.0,0.79976967]
[1749310232748,1.471,2518.2,2518.0,0.79976967]
[1749310233048,1.471,2518.2,2518.1,0.79381]
[1749310233248,1.471,2518.2,2518.0,0.79976967]
[1749310234352,0.79381,2518.1,2518.0,0.79976967]
[1749310235851,0.79381,2518.1,2518.0,0.00594967]
[1749310237353,0.79381,2518.1,2518.0,0.79978967]
[1749310237750,1.98456,2518.1,2517.7,0.79392]
[1749310237946,1.98456,2518.1,2517.6,0.79394]
[1749310237947,3.2078,2517.8,2517.6,0.79394]
[1749310238248,4.00172,2517.8,2517.3,1.2633]
[1749310238452,4.00172,2517.8,2517.7,0.79393]
[1749310238658,0.79396,2517.7,2517.6,0.79396]
[1749310238854,4.00765967,2517.8,2517.7,0.79393]
[1749310239260,3.21374967,2517.8,2517.5,0.79398]
[1749310239446,3.21374967,2517.8,2517.3,1.26924967]
[1749310239653,0.79401,2517.5,2517.4,0.79402]
[1749310240252,0.79403,2517.4,2517.3,0.00594967]
[1749310241259,3.2078,2517.5,2517.3,0.80000967]
[1749310241663,4.00183,2517.5,2517.3,0.80000967]
[1749310241961,4.00182,2517.5,2517.3,0.79999967]
[1749310242162,0.79403,2517.4,2517.3,0.00594967]
[1749310242462,4.00181,2517.5,2517.3,0.80000967]
[1749310242657,4.00183,2517.5,2517.3,0.80000967]
[1749310242960,0.79403,2517.4,2517.3,0.80000967]
[1749310243155,0.79403,2517.4,2517.3,0.00594967]
[1749310243664,5.29842,2517.5,2517.3,0.79998967]
[1749310245262,0.79403,2517.4,2517.3,0.79998967]
[1749310245562,5.29842,2517.5,2517.3,0.79998967]
[1749310246451,5.29842,2517.5,2517.3,0.79997967]
[1749310247068,5.29842,2517.5,2517.4,0.79403]
[1749310247263,0.79403,2517.4,2517.3,0.79998967]
[1749310247762,2.10733,2517.4,2517.3,0.00594967]
[1749310249569,2.10733,2517.4,2517.3,0.07486139]
[1749310249870,2.79513,2517.4,2517.3,0.07486139]
[1749310250366,0.6878,2517.4,2517.3,0.86892139]
[1749310250568,1.48183,2517.4,2517.3,0.86892139]
[1749310251266,6.20083,2517.4,2517.3,0.07486139]
[1749310251465,7.58393,2517.4,2517.3,0.07486139]
[1749310259072,0.79403,2517.4,2517.3,0.07486139]
[1749310259680,0.79419,2516.9,2516.8,0.6496]
[1749310259872,0.79419,2516.9,2516.7,1.47495]
[1749310260072,0.79422,2516.8,2516.7,1.47495]
[1749310260271,0.79422,2516.8,2516.7,0.6807]
[1749310261273,0.79428,2516.6,2516.5,0.00594967]
[1749310261469,0.79428,2516.6,2516.5,1.48095967]
[1749310261676,0.6563,2516.9,2516.5,1.48095967]
[1749310261879,0.79427,2516.7,2516.6,0.79428]
[1749310262179,0.6563,2516.9,2516.7,0.79423]
[1749310262379,1.4505,2516.9,2516.7,0.79423]
[1749310262774,0.6563,2516.9,2516.8,0.79422]
[1749310262974,0.6563,2516.9,2516.5,0.00594967]
[1749310263274,0.79428,2516.6,2516.5,0.00594967]
[1749310264272,6.16008,2516.6,2516.5,0.00594967]
[1749310265677,8.20968,2516.6,2516.5,0.00594967]
[1749310266071,0.79446,2516.1,2515.9,3.8582]
[1749310266276,4.716,2516.2,2515.8,0.6967]
[1749310266576,0.79455,2515.8,2515.4,0.6504]
[1749310266783,0.79453,2515.8,2515.6,0.79458]
[1749310267081,3.21376184,2516.0,2515.5,1.49132]
[1749310267277,3.21376184,2516.0,2515.5,0.6967]
[1749310267473,0.7946,2515.6,2515.5,0.6967]
[1749310267677,0.79463,2515.5,2515.4,0.00596184]
[1749310268383,1.47133,2515.5,2515.4,0.00596184]
[1749310268686,0.6767,2515.5,2515.4,0.80062184]
[1749310269382,0.6767,2515.5,2515.4,0.00596184]
[1749310269579,1.47133,2515.5,2515.4,0.00596184]
[1749310271272,0.6767,2515.5,2515.4,0.00596184]
[1749310271481,0.6767,2515.5,2515.4,0.80062184]
[1749310271675,0.79459,2515.7,2515.4,0.80062184]
[1749310271984,0.79463,2515.5,2515.4,0.00596184]
[1749310273388,1.48073,2515.5,2515.4,0.00596184]
[1749310274378,5.4031,2515.5,2515.4,0.00596184]
[1749310274977,3.2078,2515.6,2515.5,0.79463]
[1749310275287,0.00596184,2516.0,2515.9,0.7945]
[1749310277880,4.717,2517.0,2516.3,0.79437]
[1749310278084,4.717,2517.0,2516.6,0.06891172]
[1749310278085,0.79425,2516.7,2516.6,0.06891172]
[1749310278985,5.51125,2516.7,2516.6,0.06891172]
[1749310280085,0.79428,2516.6,2516.4,0.79433]
[1749310280689,4.717,2516.7,2516.4,0.79433]
[1749310280889,0.63556184,2516.9,2516.3,0.6342]
[1749310281095,4.717,2516.6,2516.5,0.79431]
[1749310281389,4.717,2516.7,2516.6,0.79426]
[1749310281580,5.51125,2516.7,2516.6,0.79426]
[1749310281779,5.51125,2516.7,2516.5,0.79429]
[1749310281981,0.79428,2516.6,2516.4,1.2562]
[1749310282282,0.79428,2516.6,2516.4,0.79433]